Workbook

Sheet Sheet1
A1: 2022年度安徽省泾县中小学公开招聘新任教师 笔试成绩汇总表
A2: 岗位代码 | B2: 准考证号 | C2: 教育综合知识成绩 | D2: 学科专业成绩 | E2: 笔试合成成绩
A3: 10001 | B3: 22100010101 | C3: 85.24 | D3: 95.20 | E3: =D3*0.6+C3*0.4 -> 91.22
A4: 10001 | B4: 22100010102 | C4: 80.82 | D4: 90.70 | E4: =D4*0.6+C4*0.4 -> 86.75
A5: 10001 | B5: 22100010103 | E5: 缺考
A6: 10001 | B6: 22100010104 | C6: 65.50 | D6: 96.90 | E6: =D6*0.6+C6*0.4 -> 84.34
A7: 10001 | B7: 22100010105 | E7: 缺考
A8: 10001 | B8: 22100010106 | C8: 89.30 | D8: 84.30 | E8: =D8*0.6+C8*0.4 -> 86.30
A9: 10001 | B9: 22100010107 | C9: 88.72 | D9: 89.10 | E9: =D9*0.6+C9*0.4 -> 88.95
A10: 10001 | B10: 22100010108 | C10: 91.06 | D10: 90.10 | E10: =D10*0.6+C10*0.4 -> 90.48
A11: 10001 | B11: 22100010109 | C11: 93.26 | D11: 89.90 | E11: =D11*0.6+C11*0.4 -> 91.24
A12: 10001 | B12: 22100010110 | E12: 缺考
A13: 10001 | B13: 22100010111 | E13: 缺考
A14: 10001 | B14: 22100010112 | E14: 缺考
A15: 10001 | B15: 22100010113 | C15: 93.02 | D15: 95.00 | E15: =D15*0.6+C15*0.4 -> 94.21
A16: 10001 | B16: 22100010114 | E16: 缺考
A17: 10001 | B17: 22100010115 | C17: 91.86 | D17: 89.60 | E17: =D17*0.6+C17*0.4 -> 90.50
A18: 10001 | B18: 22100010116 | C18: 88.10 | D18: 84.70 | E18: =D18*0.6+C18*0.4 -> 86.06
A19: 10001 | B19: 22100010117 | E19: 缺考
A20: 10001 | B20: 22100010118 | E20: 缺考
A21: 10001 | B21: 22100010119 | C21: 88.76 | D21: 92.90 | E21: =D21*0.6+C21*0.4 -> 91.24
A22: 10001 | B22: 22100010120 | E22: 缺考
A23: 10001 | B23: 22100010121 | E23: 缺考
A24: 10001 | B24: 22100010122 | C24: 82.26 | D24: 87.00 | E24: =D24*0.6+C24*0.4 -> 85.10
A25: 10001 | B25: 22100010123 | C25: 74.52 | D25: 75.00 | E25: =D25*0.6+C25*0.4 -> 74.81
A26: 10001 | B26: 22100010124 | C26: 99.52 | D26: 97.50 | E26: =D26*0.6+C26*0.4 -> 98.31
A27: 10001 | B27: 22100010125 | C27: 92.56 | D27: 89.60 | E27: =D27*0.6+C27*0.4 -> 90.78
A28: 10001 | B28: 22100010126 | E28: 缺考
A29: 10001 | B29: 22100010127 | C29: 86.06 | D29: 87.70 | E29: =D29*0.6+C29*0.4 -> 87.04
A30: 10001 | B30: 22100010128 | C30: 83.94 | D30: 93.70 | E30: =D30*0.6+C30*0.4 -> 89.80
A31: 10001 | B31: 22100010129 | E31: 缺考
A32: 10001 | B32: 22100010130 | E32: 缺考
A33: 10001 | B33: 22100010201 | E33: 缺考
A34: 10001 | B34: 22100010202 | E34: 缺考
A35: 10001 | B35: 22100010203 | E35: 缺考
A36: 10001 | B36: 22100010204 | E36: 缺考
A37: 10001 | B37: 22100010205 | C37: 74.72 | D37: 91.70 | E37: =D37*0.6+C37*0.4 -> 84.91
A38: 10001 | B38: 22100010206 | C38: 99.32 | D38: 94.10 | E38: =D38*0.6+C38*0.4 -> 96.19
A39: 10001 | B39: 22100010207 | C39: 72.04 | D39: 92.00 | E39: =D39*0.6+C39*0.4 -> 84.02
A40: 10001 | B40: 22100010208 | C40: 79.32 | D40: 95.00 | E40: =D40*0.6+C40*0.4 -> 88.73
A41: 10001 | B41: 22100010209 | E41: 缺考
A42: 10001 | B42: 22100010210 | C42: 82.00 | D42: 91.10 | E42: =D42*0.6+C42*0.4 -> 87.46
A43: 10001 | B43: 22100010211 | C43: 88.34 | D43: 107.10 | E43: =D43*0.6+C43*0.4 -> 99.60
A44: 10001 | B44: 22100010212 | E44: 缺考
A45: 10001 | B45: 22100010213 | C45: 82.82 | D45: 90.10 | E45: =D45*0.6+C45*0.4 -> 87.19
A46: 10001 | B46: 22100010214 | E46: 缺考
A47: 10001 | B47: 22100010215 | C47: 66.40 | D47: 78.70 | E47: =D47*0.6+C47*0.4 -> 73.78
A48: 10001 | B48: 22100010216 | E48: 缺考
A49: 10001 | B49: 22100010217 | E49: 缺考
A50: 10001 | B50: 22100010218 | C50: 67.44 | D50: 54.50 | E50: =D50*0.6+C50*0.4 -> 59.68
A51: 10001 | B51: 22100010219 | E51: 缺考
A52: 10001 | B52: 22100010220 | C52: 92.18 | D52: 92.70 | E52: =D52*0.6+C52*0.4 -> 92.49
A53: 10001 | B53: 22100010221 | E53: 缺考
A54: 10001 | B54: 22100010222 | C54: 98.20 | D54: 98.60 | E54: =D54*0.6+C54*0.4 -> 98.44
A55: 10001 | B55: 22100010223 | C55: 87.98 | D55: 96.70 | E55: 93.21
A56: 10001 | B56: 22100010224 | C56: 102.78 | D56: 96.30 | E56: 98.89
A57: 10001 | B57: 22100010225 | C57: 94.82 | D57: 98.00 | E57: 96.73
A58: 10001 | B58: 22100010226 | C58: 89.06 | D58: 88.60 | E58: 88.78
A59: 10001 | B59: 22100010227 | C59: 102.44 | D59: 92.80 | E59: 96.66
A60: 10001 | B60: 22100010228 | C60: 100.52 | D60: 93.50 | E60: 96.31
A61: 10001 | B61: 22100010229 | C61: 98.04 | D61: 97.10 | E61: 97.48
A62: 10001 | B62: 22100010230 | C62: 93.82 | D62: 98.20 | E62: 96.45
A63: 10001 | B63: 22100010301 | E63: 缺考
A64: 10001 | B64: 22100010302 | E64: 缺考
A65: 10001 | B65: 22100010303 | E65: 缺考
A66: 10001 | B66: 22100010304 | E66: 缺考
A67: 10001 | B67: 22100010305 | E67: 缺考
A68: 10001 | B68: 22100010306 | C68: 91.56 | D68: 88.80 | E68: =D68*0.6+C68*0.4 -> 89.90
A69: 10001 | B69: 22100010307 | E69: 缺考
A70: 10001 | B70: 22100010308 | C70: 72.24 | D70: 80.70 | E70: =D70*0.6+C70*0.4 -> 77.32
A71: 10002 | B71: 22100020401 | C71: 99.26 | D71: 43.00 | E71: =D71*0.6+C71*0.4 -> 65.50
A72: 10002 | B72: 22100020402 | C72: 69.24 | D72: 50.40 | E72: =D72*0.6+C72*0.4 -> 57.94
A73: 10002 | B73: 22100020403 | E73: 缺考
A74: 10002 | B74: 22100020404 | C74: 86.56 | D74: 73.10 | E74: =D74*0.6+C74*0.4 -> 78.48
A75: 10002 | B75: 22100020405 | E75: 缺考
A76: 10002 | B76: 22100020406 | E76: 缺考
A77: 10002 | B77: 22100020407 | E77: 缺考
A78: 10002 | B78: 22100020408 | C78: 88.18 | D78: 50.30 | E78: =D78*0.6+C78*0.4 -> 65.45
A79: 10002 | B79: 22100020409 | E79: 缺考
A80: 10002 | B80: 22100020410 | C80: 93.26 | D80: 76.00 | E80: =D80*0.6+C80*0.4 -> 82.90
A81: 10002 | B81: 22100020411 | C81: 94.72 | D81: 79.80 | E81: =D81*0.6+C81*0.4 -> 85.77
A82: 10002 | B82: 22100020412 | C82: 85.60 | D82: 75.70 | E82: =D82*0.6+C82*0.4 -> 79.66
A83: 10002 | B83: 22100020413 | E83: 缺考
A84: 10002 | B84: 22100020414 | C84: 84.62 | D84: 77.80 | E84: =D84*0.6+C84*0.4 -> 80.53
A85: 10002 | B85: 22100020415 | C85: 89.86 | D85: 82.20 | E85: 85.26
A86: 10002 | B86: 22100020416 | C86: 78.90 | D86: 80.80 | E86: 80.04
A87: 10002 | B87: 22100020417 | C87: 81.18 | D87: 86.80 | E87: 84.55
A88: 10002 | B88: 22100020418 | C88: 98.44 | D88: 102.40 | E88: 100.82
A89: 10002 | B89: 22100020419 | C89: 87.10 | D89: 82.00 | E89: 84.04
A90: 10002 | B90: 22100020420 | E90: 缺考
A91: 10002 | B91: 22100020421 | E91: 缺考
A92: 10002 | B92: 22100020422 | E92: 缺考
A93: 10002 | B93: 22100020423 | E93: 缺考
A94: 10002 | B94: 22100020424 | C94: 100.36 | D94: 68.10 | E94: =D94*0.6+C94*0.4 -> 81.00
A95: 10002 | B95: 22100020425 | E95: 缺考
A96: 10002 | B96: 22100020426 | C96: 75.04 | D96: 72.50 | E96: =D96*0.6+C96*0.4 -> 73.52
A97: 10002 | B97: 22100020427 | C97: 74.18 | D97: 57.80 | E97: 64.35
A98: 10002 | B98: 22100020428 | C98: 91.04 | D98: 65.10 | E98: 75.48
A99: 10002 | B99: 22100020429 | C99: 94.42 | D99: 91.30 | E99: 92.55
A100: 10002 | B100: 22100020430 | C100: 95.74 | D100: 77.00 | E100: 84.50
A101: 10002 | B101: 22100020501 | C101: 73.84 | D101: 61.00 | E101: 66.14
A102: 10002 | B102: 22100020502 | C102: 81.98 | D102: 54.10 | E102: 65.25
A103: 10002 | B103: 22100020503 | C103: 78.56 | D103: 80.10 | E103: 79.48
A104: 10002 | B104: 22100020504 | C104: 85.88 | D104: 88.60 | E104: 87.51
A105: 10002 | B105: 22100020505 | C105: 100.76 | D105: 65.00 | E105: 79.30
A106: 10002 | B106: 22100020506 | C106: 85.68 | D106: 47.90 | E106: 63.01
A107: 10002 | B107: 22100020507 | C107: 93.36 | D107: 85.40 | E107: 88.58
A108: 10002 | B108: 22100020508 | E108: 缺考
A109: 10002 | B109: 22100020509 | C109: 91.06 | D109: 87.00 | E109: =D109*0.6+C109*0.4 -> 88.62
A110: 10002 | B110: 22100020510 | E110: 缺考
A111: 10002 | B111: 22100020511 | C111: 92.50 | D111: 72.80 | E111: =D111*0.6+C111*0.4 -> 80.68
A112: 10002 | B112: 22100020512 | E112: 缺考
A113: 10002 | B113: 22100020513 | E113: 缺考
A114: 10002 | B114: 22100020514 | E114: 缺考
A115: 10002 | B115: 22100020515 | C115: 78.44 | D115: 63.90 | E115: =D115*0.6+C115*0.4 -> 69.72
A116: 10002 | B116: 22100020516 | E116: 缺考
A117: 10002 | B117: 22100020517 | C117: 98.96 | D117: 83.30 | E117: =D117*0.6+C117*0.4 -> 89.56
A118: 10002 | B118: 22100020518 | E118: 缺考
A119: 10002 | B119: 22100020519 | C119: 96.40 | D119: 79.00 | E119: =D119*0.6+C119*0.4 -> 85.96
A120: 10002 | B120: 22100020520 | C120: 88.60 | D120: 77.80 | E120: =D120*0.6+C120*0.4 -> 82.12
A121: 10002 | B121: 22100020521 | C121: 94.16 | D121: 83.50 | E121: =D121*0.6+C121*0.4 -> 87.76
A122: 10002 | B122: 22100020522 | E122: 缺考
A123: 10002 | B123: 22100020523 | E123: 缺考
A124: 10002 | B124: 22100020524 | C124: 88.54 | D124: 93.60 | E124: =D124*0.6+C124*0.4 -> 91.58
A125: 10002 | B125: 22100020525 | C125: 94.92 | D125: 74.70 | E125: =D125*0.6+C125*0.4 -> 82.79
A126: 10002 | B126: 22100020526 | E126: 缺考
A127: 10002 | B127: 22100020527 | C127: 78.66 | D127: 69.90 | E127: =D127*0.6+C127*0.4 -> 73.40
A128: 10002 | B128: 22100020528 | E128: 缺考
A129: 10002 | B129: 22100020529 | E129: 缺考
A130: 10002 | B130: 22100020530 | E130: 缺考
A131: 10002 | B131: 22100020601 | E131: 缺考
A132: 10002 | B132: 22100020602 | C132: 87.54 | D132: 86.30 | E132: =D132*0.6+C132*0.4 -> 86.80
A133: 10002 | B133: 22100020603 | C133: 91.34 | D133: 85.30 | E133: =D133*0.6+C133*0.4 -> 87.72
A134: 10002 | B134: 22100020604 | C134: 103.98 | D134: 104.30 | E134: =D134*0.6+C134*0.4 -> 104.17
A135: 10002 | B135: 22100020605 | E135: 缺考
A136: 10002 | B136: 22100020606 | E136: 缺考
A137: 10002 | B137: 22100020607 | C137: 90.50 | D137: 77.70 | E137: =D137*0.6+C137*0.4 -> 82.82
A138: 10002 | B138: 22100020608 | E138: 缺考
A139: 10002 | B139: 22100020609 | E139: 缺考
A140: 10002 | B140: 22100020610 | E140: 缺考
A141: 10002 | B141: 22100020611 | C141: 77.82 | D141: 67.60 | E141: =D141*0.6+C141*0.4 -> 71.69
A142: 10002 | B142: 22100020612 | C142: 84.34 | D142: 65.00 | E142: =D142*0.6+C142*0.4 -> 72.74
A143: 10002 | B143: 22100020613 | C143: 94.04 | D143: 65.40 | E143: =D143*0.6+C143*0.4 -> 76.86
A144: 10002 | B144: 22100020614 | C144: 77.26 | D144: 81.40 | E144: =D144*0.6+C144*0.4 -> 79.74
A145: 10002 | B145: 22100020615 | C145: 89.94 | D145: 74.40 | E145: =D145*0.6+C145*0.4 -> 80.62
A146: 10002 | B146: 22100020616 | E146: 缺考
A147: 10002 | B147: 22100020617 | C147: 74.50 | D147: 69.10 | E147: =D147*0.6+C147*0.4 -> 71.26
A148: 10002 | B148: 22100020618 | C148: 72.64 | D148: 69.50 | E148: =D148*0.6+C148*0.4 -> 70.76
A149: 10002 | B149: 22100020619 | E149: 缺考
A150: 10002 | B150: 22100020620 | E150: 缺考
A151: 10002 | B151: 22100020621 | E151: 缺考
A152: 10002 | B152: 22100020622 | E152: 缺考
A153: 10002 | B153: 22100020623 | E153: 缺考
A154: 10002 | B154: 22100020624 | E154: 缺考
A155: 10002 | B155: 22100020625 | E155: 缺考
A156: 10002 | B156: 22100020626 | E156: 缺考
A157: 10002 | B157: 22100020627 | C157: 95.64 | D157: 77.50 | E157: =D157*0.6+C157*0.4 -> 84.76
A158: 10002 | B158: 22100020628 | C158: 81.72 | D158: 93.10 | E158: =D158*0.6+C158*0.4 -> 88.55
A159: 10002 | B159: 22100020629 | E159: 缺考
A160: 10002 | B160: 22100020630 | C160: 84.48 | D160: 79.70 | E160: =D160*0.6+C160*0.4 -> 81.61
A161: 10002 | B161: 22100020701 | C161: 94.20 | D161: 59.00 | E161: =D161*0.6+C161*0.4 -> 73.08
A162: 10002 | B162: 22100020702 | E162: 缺考
A163: 10002 | B163: 22100020703 | C163: 92.44 | D163: 73.50 | E163: =D163*0.6+C163*0.4 -> 81.08
A164: 10002 | B164: 22100020704 | C164: 88.86 | D164: 83.10 | E164: =D164*0.6+C164*0.4 -> 85.40
A165: 10002 | B165: 22100020705 | E165: 缺考
A166: 10002 | B166: 22100020706 | C166: 67.90 | D166: 90.00 | E166: =D166*0.6+C166*0.4 -> 81.16
A167: 10002 | B167: 22100020707 | C167: 80.72 | D167: 71.20 | E167: =D167*0.6+C167*0.4 -> 75.01
A168: 10002 | B168: 22100020708 | C168: 77.44 | D168: 85.10 | E168: =D168*0.6+C168*0.4 -> 82.04
A169: 10002 | B169: 22100020709 | C169: 97.34 | D169: 76.40 | E169: =D169*0.6+C169*0.4 -> 84.78
A170: 10002 | B170: 22100020710 | C170: 93.78 | D170: 73.00 | E170: =D170*0.6+C170*0.4 -> 81.31
A171: 10002 | B171: 22100020711 | E171: 缺考
A172: 10002 | B172: 22100020712 | C172: 99.24 | D172: 86.60 | E172: =D172*0.6+C172*0.4 -> 91.66
A173: 10002 | B173: 22100020713 | C173: 83.46 | D173: 80.60 | E173: =D173*0.6+C173*0.4 -> 81.74
A174: 10003 | B174: 22100031101 | C174: 81.86 | D174: 106.10 | E174: =D174*0.6+C174*0.4 -> 96.40
A175: 10003 | B175: 22100031102 | C175: 95.28 | D175: 98.70 | E175: =D175*0.6+C175*0.4 -> 97.33
A176: 10003 | B176: 22100031103 | C176: 79.42 | D176: 106.90 | E176: =D176*0.6+C176*0.4 -> 95.91
A177: 10003 | B177: 22100031104 | E177: 缺考
A178: 10003 | B178: 22100031105 | E178: 缺考
A179: 10003 | B179: 22100031106 | E179: 缺考
A180: 10003 | B180: 22100031107 | E180: 缺考
A181: 10003 | B181: 22100031108 | E181: 缺考
A182: 10003 | B182: 22100031109 | E182: 缺考
A183: 10003 | B183: 22100031110 | C183: 95.02 | D183: 110.80 | E183: =D183*0.6+C183*0.4 -> 104.49
A184: 10003 | B184: 22100031111 | E184: 缺考
A185: 10003 | B185: 22100031112 | C185: 99.48 | D185: 109.20 | E185: =D185*0.6+C185*0.4 -> 105.31
A186: 10003 | B186: 22100031113 | E186: 缺考
A187: 10003 | B187: 22100031114 | C187: 64.88 | D187: 90.00 | E187: =D187*0.6+C187*0.4 -> 79.95
A188: 10003 | B188: 22100031115 | E188: 缺考
A189: 10003 | B189: 22100031116 | C189: 93.24 | D189: 103.90 | E189: =D189*0.6+C189*0.4 -> 99.64
A190: 10003 | B190: 22100031117 | E190: 缺考
A191: 10003 | B191: 22100031118 | E191: 缺考
A192: 10003 | B192: 22100031119 | C192: 58.38 | D192: 107.30 | E192: =D192*0.6+C192*0.4 -> 87.73
A193: 10003 | B193: 22100031120 | C193: 98.66 | D193: 104.70 | E193: =D193*0.6+C193*0.4 -> 102.28
A194: 10003 | B194: 22100031121 | C194: 93.16 | D194: 101.40 | E194: =D194*0.6+C194*0.4 -> 98.10
A195: 10003 | B195: 22100031122 | C195: 89.96 | D195: 103.30 | E195: =D195*0.6+C195*0.4 -> 97.96
A196: 10003 | B196: 22100031123 | C196: 86.22 | D196: 108.70 | E196: =D196*0.6+C196*0.4 -> 99.71
A197: 10003 | B197: 22100031124 | E197: 缺考
A198: 10003 | B198: 22100031125 | C198: 73.62 | D198: 98.60 | E198: =D198*0.6+C198*0.4 -> 88.61
A199: 10003 | B199: 22100031126 | C199: 95.08 | D199: 102.60 | E199: =D199*0.6+C199*0.4 -> 99.59
A200: 10003 | B200: 22100031127 | C200: 72.54 | D200: 100.90 | E200: =D200*0.6+C200*0.4 -> 89.56
... 1671 more rows
